Workbook

Sheet Simulador Reg Trib. Aposentado
C3: COMPARATIVO DE CÁLCULO DE IR TABELA PROGRESSIVA X TABELA REGRESSIVA
B5: SEM VALOR LEGAL: PROJEÇÕES REALIZADAS COM DADOS FORNECIDOS PELO PARTICIPANTE
C6: Dados a Preencher:
C7: Digite o valor da sua aposentadoria no INSS
C9: Digite o valor do seu benefíco USIPREV ou COSIPREV
C11: Digite a idade atual
C13: Alíquota da Tabela Regressiva: | L13: 0.1
C15: SIMULAÇÃO TABELA PROGRESSIVA - INSS E PREVIDÊNCIA USIMINAS
C17: INSS | K17: PREVIDÊNCIA USIMINAS | S17: INSS E PREVIDÊNCIA USIMINAS
C19: Aposentadoria INSS | H19: =$L$7 -> 0 | K19: Benefício USIPREV | P19: =$L$9 -> 0 | S19: Aposentadoria INSS ( 2 ) | X19: =$L$7 -> 0
C20: Isenção 65 anos | H20: =IF(L11>=65,1903.98,0) -> 0 | K20: Isenção 65 anos | P20: =H20 -> 0 | S20: Benefício USIPREV ( 1 ) | X20: =$L$9 -> 0
C21: Desconto simplificado | H21: ='Tab IR Progressiva'!H16 -> 564.8 | S21: Renda Total ( 1 + 2 ) | X21: =X19+X20 -> 0
C22: (*) Dedução Padrão 20% | H22: =IF((H19*0.2)>=H23,H23,H19*0.2) -> 0 | S22: Isenção 65 anos | X22: =H20 -> 0
C23: Dedução Máxima Permitida | H23: 1396.2 | S23: Desconto simplificado | X23: =H21 -> 564.8
C24: Base Calculo IR Mensal | H24: =IF(L7="",0,H19-H20-H21-H22) -> 0 | K24: Base Calculo IR Mensal | P24: =P19-P20 -> 0 | S24: (*) Dedução Padrão 20% | X24: =IF((X21*0.2)>=X25,X25,X21*0.2) -> 0
C25: IR Mensal - Progressivo | H25: =IF(H24="","",IF(H24>'Tab IR Progressiva'!$A$17,H24*'Tab IR Progressiva'!$C$17-'Tab IR Progressiva'!$D$17,IF(H24>'Tab IR Progressiva'!$A$16,H24*'Tab IR Progressiva'!$C$16-'Tab IR Progressiva'!$D$16,IF(H24>'Tab IR Progressiva'!$A$15,H24*'Tab IR Progressiva'!$C$15-'Tab IR Progressiva'!$D$15,IF(H24>'Tab IR Progressiva'!$A$14,H24*'Tab IR Progressiva'!$C$14-'Tab IR Progressiva'!$D$14,0))))) -> 0 | K25: IR Mensal - Progressivo | P25: =IF(P24="","",IF(P24>'Tab IR Progressiva'!$A$17,P24*'Tab IR Progressiva'!$C$17-'Tab IR Progressiva'!$D$17,IF(P24>'Tab IR Progressiva'!$A$16,P24*'Tab IR Progressiva'!$C$16-'Tab IR Progressiva'!$D$16,IF(P24>'Tab IR Progressiva'!$A$15,P24*'Tab IR Progressiva'!$C$15-'Tab IR Progressiva'!$D$15,IF(P24>'Tab IR Progressiva'!$A$14,P24*'Tab IR Progressiva'!$C$14-'Tab IR Progressiva'!$D$14,0))))) -> 0 | S25: Dedução Máxima Permitida | X25: 1396.2
S26: Base Calculo IR Mensal | X26: =IF(X21=0,0,X21-X22-X23-X24) -> 0
S27: IR Total - Progressivo | X27: =IF(X26="","",IF(X26>'Tab IR Progressiva'!$A$17,X26*'Tab IR Progressiva'!$C$17-'Tab IR Progressiva'!$D$17,IF(X26>'Tab IR Progressiva'!$A$16,X26*'Tab IR Progressiva'!$C$16-'Tab IR Progressiva'!$D$16,IF(X26>'Tab IR Progressiva'!$A$15,X26*'Tab IR Progressiva'!$C$15-'Tab IR Progressiva'!$D$15,IF(X26>'Tab IR Progressiva'!$A$14,X26*'Tab IR Progressiva'!$C$14-'Tab IR Progressiva'!$D$14,0))))) -> 0
C29: Percentual IR mensal | H29: =IF(H19=0,"",(H25/H19)) ->  | K29: Percentual IR mensal | P29: =IF(P19=0,"",(P25/P19)) ->  | S29: Percentual IR mensal | X29: =IF(X21=0,"",(X27/X21)) -> 
C30: (*) Calculo baseado na Declaração Anual Simplificada do Imposto de Renda.
C31: SIMULAÇÃO TABELA PROGRESSIVA - INSS E TABELA REGRESSIVA - PREVIDÊNCIA USIMINAS
C33: INSS | K33: PREVIDÊNCIA USIMINAS | S33: INSS E PREVIDÊNCIA USIMINAS
C35: Aposentadoria INSS | H35: =$L$7 -> 0 | K35: Benefício USIPREV | P35: =$L$9 -> 0 | S35: Renda Total | X35: =X21 -> 0
C36: Isenção 65 anos | H36: =H20 -> 0 | K36: Aliquota Inicial IR na Apos. | P36: =L13 -> 0.1 | S36: IR INSS Tab. Progressiva | X36: =H41 -> 0
C37: Desconto simplificado | H37: =H21 -> 564.8 | S37: IR Usiprev Tab. Regressiva | X37: =P38 -> 0
C38: (*) Dedução Padrão 20% | H38: =IF((H35*0.2)>=H39,H39,H35*0.2) -> 0 | K38: IR Tab. Regressiva | P38: =IF(P35="","",P35*P36) -> 0 | S38: IR Total | X38: =X36+X37 -> 0
C39: Dedução Máxima Permitida | H39: 1396.2
C40: Base Calculo IR Mensal | H40: =IF(L7="",0,H35-H36-H37-H38) -> 0
C41: IR Tab. Progressiva | H41: =IF(H40="","",IF(H40>'Tab IR Progressiva'!$A$17,H40*'Tab IR Progressiva'!$C$17-'Tab IR Progressiva'!$D$17,IF(H40>'Tab IR Progressiva'!$A$16,H40*'Tab IR Progressiva'!$C$16-'Tab IR Progressiva'!$D$16,IF(H40>'Tab IR Progressiva'!$A$15,H40*'Tab IR Progressiva'!$C$15-'Tab IR Progressiva'!$D$15,IF(H40>'Tab IR Progressiva'!$A$14,H40*'Tab IR Progressiva'!$C$14-'Tab IR Progressiva'!$D$14,0))))) -> 0
C43: Percentual IR mensal | H43: =IF(H35=0,"",(H41/H35)) ->  | K43: Percentual IR mensal | P43: =IF(P35=0,"",(P38/P35)) ->  | S43: Percentual Total IR mensal | X43: =IF(X35=0,"",X38/X35) -> 
B46: Resultado da simulação
C47: =IF(L7="","",(IF(X29<=X43,AC54,AC55))) -> 
AC54: IR calculado com as duas rendas na tabela progressiva ficou menor que o IR calculado com o benefício da Previcência Usiminas na tabela regressiva e a aposentadoria do INSS na tabela progressiva
AC55: IR calculado na tabela progressiva para a aposentadoria do INSS e tabela regressiva para o benefício da Previdencia Usiminas ficou menor que o IR calculado com as duas rendas na tabela progressiva.
AC57: Considerando que o IR calculado na tabela progressiva para as duas rendas está menor que o IR calculado nas tabelas progressiva para a aposentadoria do INSS e regressiva para o benefício da Previdência Usiminas, entendemos que a melhor opção é manter o benefício da Previdência Usiminas na tabela progressiva.
AC58: Considerando que a soma do IR calculado na tabela progressiva para a aposentadoria do INSS e tabela regressiva para o benefício da Previdencia Usiminas é menor que o IR calculado com as duas rendas na tabela progressiva, entendemos que a melhor opção é alterar a renda da Previdência Usiminas para a tabela regressiva.

Sheet Tab IR Progressiva (hidden)
A1: Tabela Progressiva Mensal - De Janeiro a abril 2023 | F1: Tabela Progressiva Mensal - De maio 2023 a janeiro 2024 | K1: Tabela Progressiva Anual - Ano 2023
A2: Base de Cálculo em R$ | C2: Alíquota | D2: Parcela a Deduzir | F2: Base de Cálculo em R$ | H2: Alíquota | I2: Parcela a Deduzir | K2: Base de Cálculo em R$ | M2: Alíquota | N2: Parcela a Deduzir
A3: De | B3: Até | C3: % | D3: do IR | F3: De | G3: Até | H3: % | I3: do IR | K3: De | L3: Até | M3: % | N3: do IR
A4: 0 | B4: 1903.98 | C4: - | D4: - | F4: 0 | G4: 2112 | H4: - | I4: - | K4: 0 | L4: =(B4*4+G4*8) -> 24511.92 | M4: - | N4: -
A5: =B4+0.01 -> 1903.99 | B5: 2826.65 | C5: 0.075 | D5: 142.8 | F5: =G4+0.01 -> 2112.01 | G5: 2826.65 | H5: 0.075 | I5: 158.4 | K5: =L4+0.01 -> 24511.93 | L5: =(B5*4+G5*8) -> 33919.8 | M5: 0.075 | N5: 1838.39
A6: =B5+0.01 -> 2826.66 | B6: 3751.05 | C6: 0.15 | D6: 354.8 | F6: =G5+0.01 -> 2826.66 | G6: 3751.05 | H6: 0.15 | I6: 370.4 | K6: =L5+0.01 -> 33919.81 | L6: =(B6*4+G6*8) -> 45012.6 | M6: 0.15 | N6: 4382.38
A7: =B6+0.01 -> 3751.06 | B7: 4664.68 | C7: 0.225 | D7: 636.13 | F7: =G6+0.01 -> 3751.06 | G7: 4664.68 | H7: 0.225 | I7: 651.73 | K7: =L6+0.01 -> 45012.61 | L7: =(B7*4+G7*8) -> 55976.16 | M7: 0.225 | N7: 7758.32
A8: =B7 -> 4664.68 | B8: 0 | C8: 0.275 | D8: 869.36 | F8: =G7 -> 4664.68 | G8: 0 | H8: 0.275 | I8: 884.96 | K8: =L7 -> 55976.16 | L8: 0 | M8: 0.275 | N8: 10557.13
A10: Tabela Progressiva Mensal - A partir de fevereiro 2024
A11: Base de Cálculo em R$ | C11: Alíquota | D11: Parcela a Deduzir | F11: 16754.34 | G11: Limite máximo dedução desconto simplificado (anual)
A12: De | B12: Até | C12: % | D12: do IR | F12: 12 | G12: número meses
A13: 0 | B13: 2259.2 | C13: - | D13: - | F13: =F11/F12 -> 1396.195 | G13: Limite máximo dedução desconto simplificado (mensal)
A14: =B13+0.01 -> 2259.21 | B14: 2826.65 | C14: 0.075 | D14: 169.44
A15: =B14+0.01 -> 2826.66 | B15: 3751.05 | C15: 0.15 | D15: 381.44 | F15: Desconto simplificado mensal | H15: 528 | I15: Até janeiro 2024
A16: =B15+0.01 -> 3751.06 | B16: 4664.68 | C16: 0.225 | D16: 662.77 | F16: Desconto simplificado mensal | H16: 564.8 | I16: A partir de fevereiro 2024
A17: =B16 -> 4664.68 | B17: 0 | C17: 0.275 | D17: 896
A20: Tabela Progressiva Anual
A21: Base de Cálculo em R$ | C21: Alíquota | D21: Parcela a Deduzir
A22: De | B22: Até | C22: % | D22: do IR
A23: 0 | B23: =B13*12 -> 27110.4 | C23: - | D23: -
A24: =B23+0.01 -> 27110.41 | B24: =B14*12 -> 33919.8 | C24: 0.075 | D24: =D14*12 -> 2033.28
A25: =B24+0.01 -> 33919.81 | B25: 45012.6 | C25: 0.15 | D25: =D15*12 -> 4577.28
A26: =B25+0.01 -> 45012.61 | B26: 55976.16 | C26: 0.225 | D26: 7953.24
A27: =B26 -> 55976.16 | B27: 0 | C27: 0.275 | D27: 10752

Sheet Tab IR Regressiva (hidden)
A2: Tabela Regressiva de IR
A3: Alíquota % | B3: Período de acumulação de cada contribuição
A4: 35 | B4: Inferior ou igual a 2 (dois) anos
A5: 30 | B5: Superior a 2 (dois) anos e inferior ou igual a 4 (quatro) anos
A6: 25 | B6: Superior a 4 (quatro) anos e inferior ou igual a 6 (seis) anos
A7: 20 | B7: Superior a 6 (seis) anos e inferior ou igual a 8 (oito) anos
A8: 15 | B8: Superior a 8 (oito) anos e inferior ou igual a 10 (dez) anos
A9: 10 | B9: Superior a 10 (dez) anos
